lending/lending_fUSD_20251022
["ID","MTS","AMOUNT","RATE_DAILY","PERIOD"]
[392070909,1761136182305,-500.0,0.00045479,120]
[392070910,1761136182342,-500.0,0.00045479,120]
[392070911,1761136182378,-500.0,0.00045479,120]
[392070912,1761136182417,-500.0,0.00045479,120]
[392070913,1761136182451,-500.0,0.00045479,120]
[392070914,1761136182487,-500.0,0.00045479,120]
[392070915,1761136182528,-500.0,0.00045479,120]
[392070916,1761136182566,-249.59983788,0.00045479,120]
[392070917,1761136182604,-500.0,0.00045479,120]
[392070918,1761136182638,-500.0,0.00045479,120]
[392070919,1761136182668,-500.0,0.00045479,120]
[392070920,1761136182700,-233.54811008,0.00045479,120]
[392070921,1761136182734,-500.0,0.00045479,120]
[392070922,1761136182767,-277.93297028,0.00045479,120]
[392070923,1761136182801,-1774.5,0.00045479,60]
[392070924,1761136182837,-500.0,0.00045479,120]
[392070925,1761136182872,-500.0,0.00045479,120]
[392070926,1761136182910,-500.0,0.00045479,120]
[392070927,1761136182945,-500.0,0.00045479,120]
[392070928,1761136182980,-911.59,0.00045479,120]
[392070929,1761136183015,-774.69,0.00045479,120]
[392070930,1761136183050,-565.62,0.00045479,120]
[392070931,1761136183084,-500.0,0.00045479,120]
[392070932,1761136183121,-649.37,0.00045479,30]
[392070933,1761136183156,-500.0,0.00045479,120]
[392070934,1761136183191,-500.0,0.00045479,30]
[392070935,1761136183226,-508.93202967,0.00045479,120]
[392070936,1761136183260,-959.74,0.00045479,120]
[392070937,1761136183296,-500.0,0.00045479,120]
[392070938,1761136183330,-629.63,0.00045479,120]
[392070939,1761136183370,-500.0,0.00045479,120]
[392070940,1761136183406,-500.0,0.00045479,120]
[392070941,1761136183440,-500.0,0.00045479,120]
[392070942,1761136183475,-503.19024511,0.00045479,120]
[392070943,1761136183511,-807.42,0.00045479,120]
[392070944,1761136183546,-500.0,0.00045479,120]
[392070945,1761136183583,-1040.88,0.00045479,120]
[392070946,1761136183621,-1060.98,0.00045479,120]
[392070947,1761136183661,-843.75,0.00045479,120]
[392070948,1761136183701,-500.0,0.00045479,90]
[392070949,1761136183739,-904.48,0.00045479,120]
[392070950,1761136183775,-500.0,0.00045479,120]
[392070951,1761136183809,-506.32648305,0.00045479,120]
[392070952,1761136183846,-500.0,0.00045479,120]
[392070953,1761136183883,-3305.92,0.00045479,120]
[392070954,1761136183919,-615.48,0.00045479,120]
[392070955,1761136183957,-1407.21,0.00045479,120]
[392070956,1761136183996,-682.22,0.00045479,120]
[392070957,1761136184038,-568.21,0.00045479,120]
[392070958,1761136184079,-1200.9,0.00045479,120]
[392070959,1761136184120,-500.0,0.00045479,120]
[392070960,1761136184163,-932.59,0.00045479,120]
[392070961,1761136184206,-1170.48,0.00045479,120]
[392070962,1761136184248,-500.0,0.00045479,120]
[392070963,1761136184289,-500.0,0.00045479,120]
[392070964,1761136184329,-300.0,0.00045479,120]
[392070965,1761136184371,-500.0,0.00045479,120]
[392070966,1761136184409,-638.4,0.00045479,120]
[392070967,1761136184445,-1798.72,0.00045479,120]
[392070968,1761136184480,-500.0,0.00045479,120]
[392070969,1761136184518,-1270.99,0.00045479,120]
[392070970,1761136184555,-1501.03,0.00045479,120]
[392070971,1761136184591,-500.0,0.00045479,120]
[392070972,1761136184627,-1189.64,0.00045479,120]
[392070973,1761136184663,-1078.86,0.00045479,120]
[392070974,1761136184699,-940.69,0.00045479,120]
[392070975,1761136184735,-500.0,0.00045479,120]
[392070976,1761136184771,-263.66830688,0.00045479,120]
[392070977,1761136184804,-500.0,0.00045479,120]
[392070978,1761136184837,-925.82,0.00045479,120]
[392070979,1761136184871,-1280.38,0.00045479,120]
[392070980,1761136185048,-500.0,0.00045479,120]
[392070981,1761136185089,-500.0,0.00045479,120]
[392070982,1761136185130,-500.0,0.00045479,120]
[392070983,1761136185171,-500.0,0.00045479,120]
[392070984,1761136185212,-830.71,0.00045479,120]
[392070985,1761136185253,-787.56,0.00045479,120]
[392070986,1761136185293,-760.46,0.00045479,120]
[392070987,1761136185331,-964.7,0.00045479,120]
[392070988,1761136185374,-2870.69,0.00045479,120]
[392070989,1761136185412,-1167.09,0.00045479,120]
[392070990,1761136185449,-1476.47,0.00045479,120]
[392070991,1761136185485,-237.8,0.00045479,120]
[392070992,1761136185520,-1391.79,0.00045479,120]
[392070993,1761136185554,-500.0,0.00045479,120]
[392070994,1761136185590,-485.89964563,0.00045479,120]
[392070995,1761136185624,-500.0,0.00045479,120]
[392070996,1761136185658,-500.0,0.00045479,120]
[392070997,1761136185696,-560.77,0.00045479,120]
[392070998,1761136185732,-836.47,0.00045479,120]
[392070999,1761136185768,-996.26,0.00045479,120]
[392071000,1761136185803,-1536.18,0.00045479,120]
[392071001,1761136185839,-500.0,0.00045479,120]
[392071002,1761136185872,-2863.84,0.00045479,30]
[392071003,1761136185910,-1637.97,0.00045479,120]
[392071004,1761136185946,-1166.77,0.00045479,120]
[392071005,1761136185981,-744.86,0.00045479,120]
[392071006,1761136186018,-500.0,0.00045479,120]
[392071007,1761136186053,-500.0,0.00045479,120]
[392071008,1761136186089,-1207.01,0.00045479,120]
[392071009,1761136186124,-500.0,0.00045479,120]
[392071010,1761136186160,-500.0,0.00045479,120]
[392071011,1761136186195,-933.44,0.00045479,120]
[392071012,1761136186230,-500.0,0.00045479,120]
[392071013,1761136186264,-500.0,0.00045479,120]
[392071014,1761136186298,-500.0,0.00045479,120]
[392071015,1761136186335,-506.79,0.00045479,120]
[392071016,1761136186374,-500.0,0.00045479,120]
[392071017,1761136186410,-500.0,0.00045479,120]
[392071018,1761136186445,-500.0,0.00045479,120]
[392071019,1761136186481,-500.0,0.00045479,120]
[392071020,1761136186519,-500.0,0.00045479,120]
[392071021,1761136186553,-500.0,0.00045479,120]
[392071022,1761136186588,-1178.29,0.00045479,120]
[392071023,1761136186624,-878.7,0.00045479,120]
[392071024,1761136186660,-500.0,0.00045479,120]
[392071025,1761136186696,-4752.5,0.00045479,120]
[392071026,1761136186730,-500.0,0.00045479,120]
[392071027,1761136186766,-2000000.0,0.0004548,120]
[392071028,1761136186800,-20009.1979805,0.0004548,30]
[392071029,1761136186832,-2500.0,0.000455,120]
[392071030,1761136186868,-265755.81355565,0.000455,120]
[392071031,1761136191267,-510.58936222,0.00043835,120]
[392071032,1761136191304,-664.87,0.00043835,120]
[392071033,1761136191342,-500.0,0.00043889,120]
[392071034,1761136191379,-500.0,0.00043889,120]
[392071035,1761136191416,-500.0,0.00043889,120]
[392071036,1761136191450,-800.56,0.00043889,120]
[392071037,1761136191707,-500.0,0.00044163,120]
[392071038,1761136191744,-500.0,0.00044163,120]
[392071039,1761136191779,-800.56,0.00044163,120]
[392071040,1761136191816,-409.71360226,0.00044437,120]
[392071041,1761136191858,-500.0,0.00044437,120]
[392071042,1761136191894,-800.56,0.00044437,120]
[392071043,1761136191932,-564.5,0.00044711,120]
[392071044,1761136191967,-800.56,0.00044711,120]
[392071045,1761136192002,-449.20868734,0.00044757,120]
[392071046,1761136192036,-449.20868734,0.00044846,120]
[392071047,1761136192070,-3948.73707973,0.00044893,120]
[392071048,1761136192103,-3948.73707973,0.00044902,120]
[392071049,1761136192140,-449.20868734,0.00044907,120]
[392071050,1761136192174,-449.20868734,0.0004493,120]
[392071051,1761136192212,-800.56,0.00044985,120]
[392071052,1761136192248,-3948.73707973,0.00044996,120]
[392071053,1761136192289,-3948.73707973,0.00044997,120]
[392071054,1761136192330,-800.56,0.00045259,120]
[392071055,1761136192368,-1000000.0,0.000455,120]
[392071056,1761136192410,-1000000.0,0.000455,120]
[392071057,1761136192446,-2500.0,0.000455,120]
[392071058,1761136192481,-415.63973003,0.000455,30]
[392071059,1761136192520,-999.71024088,0.000455,120]
[392071060,1761136192559,-500.0,0.00045533,120]
[392071061,1761136192597,-500.0,0.00045533,120]
[392071062,1761136192631,-500.0,0.00045533,120]
[392071063,1761136192666,-2123.37,0.00045533,120]
[392071064,1761136192699,-500.0,0.00045533,120]
[392071065,1761136192734,-963.07,0.00045533,120]
[392071066,1761136192767,-1853.52,0.00045533,120]
[392071067,1761136192801,-500.0,0.00045533,120]
[392071068,1761136192837,-1338.38,0.00045533,120]
[392071069,1761136192872,-582.58,0.00045533,120]
[392071070,1761136192908,-500.0,0.00045533,120]
[392071071,1761136192943,-5164.0,0.00045533,120]
[392071072,1761136192978,-500.0,0.00045533,120]
[392071073,1761136193014,-500.0,0.00045533,120]
[392071074,1761136193049,-856.57,0.00045533,120]
[392071075,1761136193086,-938.33,0.00045533,120]
[392071076,1761136193124,-713.85,0.00045533,120]
[392071077,1761136193164,-805.35,0.00045533,120]
[392071078,1761136193206,-500.0,0.00045533,120]
[392071079,1761136193245,-1217.66,0.00045533,120]
[392071080,1761136193286,-800.56,0.00045533,120]
[392071081,1761136193330,-2257.97,0.000456,30]
[392071082,1761136193374,-166.88705361,0.000457,120]
[392071083,1761136193416,-943.68,0.00045753,120]
[392071084,1761136193457,-500.0,0.00045753,120]
[392071085,1761136193498,-1070.04,0.00045753,120]
[392071086,1761136193537,-813.58,0.00045753,120]
[392071087,1761136193575,-500.0,0.00045753,120]
[392071088,1761136193612,-504.64868061,0.00045753,120]
[392071089,1761136193648,-1065.48,0.00045753,120]
[392071090,1761136193683,-500.0,0.00045753,120]
[392071091,1761136193719,-548.57,0.00045753,120]
[392071092,1761136193756,-500.0,0.00045753,120]
[392071093,1761136193793,-500.0,0.00045753,120]
[392071094,1761136193831,-500.0,0.00045753,120]
[392071095,1761136193868,-652.14,0.00045753,120]
[392071096,1761136193906,-500.0,0.00045753,120]
[392071097,1761136193945,-500.0,0.00045753,120]
[392071098,1761136193986,-1160.59,0.00045753,120]
[392071099,1761136194023,-500.0,0.00045753,120]
[392071100,1761136194060,-630.1,0.00045753,120]
[392071101,1761136194098,-500.0,0.00045753,120]
[392071102,1761136194138,-790.48,0.00045753,120]
[392071103,1761136194178,-337.61165484,0.00045753,120]
[392071104,1761136194216,-501.67,0.00045753,120]
[392071105,1761136194254,-500.0,0.00045753,120]
[392071106,1761136194292,-500.0,0.00045753,120]
[392071107,1761136194331,-500.0,0.00045753,120]
[392071108,1761136194408,-158.75844758,0.00045753,120]
[392071109,1761136194445,-500.0,0.00045753,120]
[392071110,1761136194481,-500.0,0.00045753,120]
[392071111,1761136194516,-500.0,0.00045753,120]
[392071112,1761136194552,-500.0,0.00045753,120]
[392071113,1761136194590,-447.21506659,0.00045753,120]
[392071114,1761136194627,-500.0,0.00045753,120]
[392071115,1761136194663,-500.0,0.00045753,120]
[392071116,1761136194699,-500.0,0.00045753,120]
[392071117,1761136194736,-1774.5,0.00045753,60]
[392071118,1761136194776,-500.0,0.00045753,120]
[392071119,1761136194812,-500.0,0.00045753,120]
[392071120,1761136194852,-500.0,0.00045753,120]
[392071121,1761136194891,-424.97888944,0.00045753,120]
[392071122,1761136194932,-911.59,0.00045753,120]
[392071123,1761136194973,-774.69,0.00045753,120]
[392071124,1761136195019,-565.62,0.00045753,120]
[392071125,1761136195062,-500.0,0.00045753,120]
[392071126,1761136195104,-649.37,0.00045753,30]
[392071127,1761136195145,-500.0,0.00045753,120]
[392071128,1761136195183,-500.0,0.00045753,30]
[392071129,1761136195227,-959.74,0.00045753,120]
[392071130,1761136195267,-593.21376606,0.00045753,120]
[392071131,1761136195306,-629.63,0.00045753,120]
[392071132,1761136195348,-500.0,0.00045753,120]
[392071133,1761136195386,-500.0,0.00045753,120]
[392071134,1761136195423,-500.0,0.00045753,120]
[392071135,1761136195459,-807.42,0.00045753,120]
[392071136,1761136195497,-500.0,0.00045753,120]
[392071137,1761136195535,-1040.88,0.00045753,120]
[392071138,1761136195573,-1060.98,0.00045753,120]
[392071139,1761136195612,-843.75,0.00045753,120]
[392071140,1761136195652,-500.0,0.00045753,90]
[392071141,1761136195692,-904.48,0.00045753,120]
[392071142,1761136195732,-529.22990904,0.00045753,120]
[392071143,1761136195771,-520.15237295,0.00045753,120]
[392071144,1761136195810,-3305.92,0.00045753,120]
[392071145,1761136195852,-615.48,0.00045753,120]
[392071146,1761136195892,-1407.21,0.00045753,120]
[392071147,1761136195938,-682.22,0.00045753,120]
[392071148,1761136195980,-568.21,0.00045753,120]
[392071149,1761136196023,-1200.9,0.00045753,120]
[392071150,1761136196066,-500.0,0.00045753,120]
[392071151,1761136196108,-932.59,0.00045753,120]
[392071152,1761136196149,-1170.48,0.00045753,120]
[392071153,1761136196191,-500.0,0.00045753,120]
[392071154,1761136196233,-500.0,0.00045753,120]
[392071155,1761136196272,-300.0,0.00045753,120]
[392071156,1761136196317,-164.44324126,0.00045753,120]
[392071157,1761136196363,-638.4,0.00045753,120]
[392071158,1761136196406,-500.0,0.00045753,120]
[392071159,1761136196446,-1270.99,0.00045753,120]
[392071160,1761136196482,-500.0,0.00045753,120]
[392071161,1761136196522,-1189.64,0.00045753,120]
[392071162,1761136196559,-940.69,0.00045753,120]
[392071163,1761136196596,-500.0,0.00045753,120]
[392071164,1761136196639,-270.86881039,0.00045753,120]
[392071165,1761136196676,-925.82,0.00045753,120]
[392071166,1761136196717,-1280.38,0.00045753,120]
[392071167,1761136196757,-500.0,0.00045753,120]
[392071168,1761136196793,-500.0,0.00045753,120]
[392071169,1761136196830,-500.0,0.00045753,120]
[392071170,1761136196865,-500.0,0.00045753,120]
[392071171,1761136196901,-830.71,0.00045753,120]
[392071172,1761136196940,-787.56,0.00045753,120]
[392071173,1761136196981,-760.46,0.00045753,120]
[392071174,1761136197021,-964.7,0.00045753,120]
[392071175,1761136197060,-2870.69,0.00045753,120]
[392071176,1761136197100,-1167.09,0.00045753,120]
[392071177,1761136197136,-1476.47,0.00045753,120]
[392071178,1761136197173,-500.0,0.00045753,120]
[392071179,1761136197213,-1391.79,0.00045753,120]
[392071180,1761136197253,-500.0,0.00045753,120]
[392071181,1761136197293,-587.93425713,0.00045753,120]
[392071182,1761136197335,-560.77,0.00045753,120]
[392071183,1761136197375,-836.47,0.00045753,120]
[392071184,1761136197413,-996.26,0.00045753,120]
[392071185,1761136197449,-1536.18,0.00045753,120]
[392071186,1761136197485,-500.0,0.00045753,120]
[392071187,1761136197523,-2863.84,0.00045753,30]
[392071188,1761136197560,-1637.97,0.00045753,120]
[392071189,1761136197596,-1166.77,0.00045753,120]
[392071190,1761136197631,-744.86,0.00045753,120]
[392071191,1761136197671,-500.0,0.00045753,120]
[392071192,1761136197705,-500.0,0.00045753,120]
[392071193,1761136197742,-1207.01,0.00045753,120]
[392071194,1761136197777,-500.0,0.00045753,120]
[392071195,1761136197811,-500.0,0.00045753,120]
[392071196,1761136197845,-933.44,0.00045753,120]
[392071197,1761136197881,-500.0,0.00045753,120]
[392071198,1761136197916,-500.0,0.00045753,120]
[392071199,1761136197955,-515.6033932,0.00045753,120]
[392071200,1761136197992,-506.79,0.00045753,120]
[392071201,1761136198033,-500.0,0.00045753,120]
[392071202,1761136198073,-500.0,0.00045753,120]
[392071203,1761136198114,-500.0,0.00045753,120]
[392071204,1761136198151,-500.0,0.00045753,120]
[392071205,1761136198189,-500.0,0.00045753,120]
[392071206,1761136198226,-254.87069447,0.00045753,120]
[392071207,1761136198263,-1178.29,0.00045753,120]
[392071208,1761136198303,-878.7,0.00045753,120]
[392071209,1761136198346,-500.0,0.00045753,120]
[392071210,1761136198387,-4752.5,0.00045753,120]
[392071211,1761136198425,-500.0,0.00045753,120]
[392071212,1761136198463,-10000.0,0.000458,120]
[392071213,1761136198502,-500.0,0.00045807,120]
[392071214,1761136198658,-500.0,0.00045807,120]
[392071215,1761136198697,-500.0,0.00045807,120]
[392071216,1761136198733,-2123.37,0.00045807,120]
[392071217,1761136198767,-345.58754071,0.00045807,120]
[392071218,1761136198803,-963.07,0.00045807,120]
[392071219,1761136198838,-1853.52,0.00045807,120]
[392071220,1761136198885,-500.0,0.00045807,120]
[392071221,1761136198936,-1338.38,0.00045807,120]
[392071222,1761136198977,-582.58,0.00045807,120]
[392071223,1761136199016,-500.0,0.00045807,120]
[392071224,1761136199054,-5164.0,0.00045807,120]
[392071225,1761136199092,-500.0,0.00045807,120]
[392071226,1761136199130,-500.0,0.00045807,120]
[392071227,1761136199167,-856.57,0.00045807,120]
[392071228,1761136199206,-938.33,0.00045807,120]
[392071229,1761136199242,-713.85,0.00045807,120]
[392071230,1761136199279,-805.35,0.00045807,120]
[392071231,1761136199317,-362.41980988,0.00045807,120]
[392071232,1761136199354,-1217.66,0.00045807,120]
[392071233,1761136199392,-800.56,0.00045807,120]
[392071234,1761136199429,-769.27657112,0.000459,120]
[392071235,1761136199470,-1000.0,0.00045999,120]
[392071236,1761136199505,-288.79508222,0.00046,120]
[392071237,1761136199538,-1000.0,0.00046,30]
[392071238,1761136199572,-203.95976912,0.00046,30]
[392071239,1761136199607,-3196.54127771,0.00046,30]
[392071240,1761136199643,-2168.03739656,0.00046,120]
[392071241,1761136199680,-2096.0,0.00046,120]
[392071242,1761136199715,-1000.0,0.00046,60]
[392071243,1761136199749,-150.0,0.00046,120]
[392071244,1761136199784,-1000.0,0.00046,120]
[392071245,1761136199818,-523.82,0.00046,30]
[392071246,1761136199853,-2000.0,0.00046,120]
[392071247,1761136199893,-50000.0,0.00046,36]
[392071248,1761136199931,-300.0,0.00046,30]
[392071249,1761136199968,-513.90434917,0.00046,30]
[392071250,1761136200004,-1000000.0,0.00046,120]
[392071251,1761136200042,-856.93878776,0.00046,120]
[392071252,1761136200079,-2532.09924284,0.00046,120]
[392071253,1761136200118,-952.88188627,0.00046,120]
[392071254,1761136200158,-20009.1979805,0.00046,30]
[392071255,1761136200201,-150.0,0.00046025,120]
[392071256,1761136200242,-943.68,0.00046027,120]
[392071257,1761136200281,-500.0,0.00046027,120]
[392071258,1761136200321,-1070.04,0.00046027,120]
[392071259,1761136200368,-813.58,0.00046027,120]
[392071260,1761136200410,-500.0,0.00046027,120]
[392071261,1761136200450,-1065.48,0.00046027,120]
[392071262,1761136200491,-637.57047397,0.00046027,120]
[392071263,1761136200531,-548.57,0.00046027,120]
[392071264,1761136200568,-500.0,0.00046027,120]
[392071265,1761136200606,-500.0,0.00046027,120]
[392071266,1761136200644,-500.0,0.00046027,120]
[392071267,1761136200682,-652.14,0.00046027,120]
[392071268,1761136200718,-500.0,0.00046027,120]
[392071269,1761136200756,-500.0,0.00046027,120]
[392071270,1761136200792,-1160.59,0.00046027,120]
[392071271,1761136200828,-500.0,0.00046027,120]
[392071272,1761136200864,-630.1,0.00046027,120]
[392071273,1761136200901,-500.0,0.00046027,120]
[392071274,1761136200939,-790.48,0.00046027,120]
[392071275,1761136200978,-501.67,0.00046027,120]
[392071276,1761136201018,-500.0,0.00046027,120]
[392071277,1761136201058,-500.0,0.00046027,120]
[392071278,1761136201097,-500.0,0.00046027,120]
[392071279,1761136201135,-500.0,0.00046027,120]
[392071280,1761136201172,-500.0,0.00046027,120]
[392071281,1761136201208,-224.26857366,0.00046027,120]
[392071282,1761136201247,-500.0,0.00046027,120]
[392071283,1761136201283,-500.0,0.00046027,120]
[392071284,1761136201320,-500.0,0.00046027,120]
[392071285,1761136201361,-500.0,0.00046027,120]
[392071286,1761136201400,-1774.5,0.00046027,60]
[392071287,1761136201441,-500.0,0.00046027,120]
[392071288,1761136201481,-500.0,0.00046027,120]
[392071289,1761136201520,-500.0,0.00046027,120]
[392071290,1761136201558,-911.59,0.00046027,120]
[392071291,1761136201606,-774.69,0.00046027,120]
[392071292,1761136201650,-565.62,0.00046027,120]
[392071293,1761136201688,-500.0,0.00046027,120]
[392071294,1761136201724,-649.37,0.00046027,30]
[392071295,1761136201762,-500.0,0.00046027,120]
[392071296,1761136201799,-500.0,0.00046027,30]
[392071297,1761136201837,-959.74,0.00046027,120]
[392071298,1761136201880,-629.63,0.00046027,120]
[392071299,1761136201920,-594.75929829,0.00046027,120]
[392071300,1761136201959,-215.42352291,0.00046027,120]
[392071301,1761136201997,-500.0,0.00046027,120]
[392071302,1761136202265,-807.42,0.00046027,120]
[392071303,1761136202310,-500.0,0.00046027,120]
[392071304,1761136202353,-1040.88,0.00046027,120]
[392071305,1761136202396,-1060.98,0.00046027,120]
[392071306,1761136202442,-843.75,0.00046027,120]
[392071307,1761136202481,-500.0,0.00046027,90]
[392071308,1761136202519,-904.48,0.00046027,120]
[392071309,1761136202559,-3305.92,0.00046027,120]
[392071310,1761136202597,-615.48,0.00046027,120]
[392071311,1761136202636,-1407.21,0.00046027,120]
[392071312,1761136202674,-682.22,0.00046027,120]
[392071313,1761136202712,-568.21,0.00046027,120]
[392071314,1761136202752,-1200.9,0.00046027,120]
[392071315,1761136202793,-500.0,0.00046027,120]
[392071316,1761136202837,-932.59,0.00046027,120]
[392071317,1761136202881,-1170.48,0.00046027,120]
[392071318,1761136202928,-504.29761914,0.00046027,120]
[392071319,1761136202976,-500.0,0.00046027,120]
[392071320,1761136203022,-300.0,0.00046027,120]
[392071321,1761136203068,-638.4,0.00046027,120]
[392071322,1761136203112,-500.0,0.00046027,120]
[392071323,1761136203155,-1270.99,0.00046027,120]
[392071324,1761136203197,-500.0,0.00046027,120]
[392071325,1761136203239,-1189.64,0.00046027,120]
[392071326,1761136203281,-940.69,0.00046027,120]
[392071327,1761136203323,-500.0,0.00046027,120]
[392071328,1761136203369,-925.82,0.00046027,120]
[392071329,1761136203415,-1280.38,0.00046027,120]
[392071330,1761136203459,-500.0,0.00046027,120]
[392071331,1761136203502,-500.0,0.00046027,120]
[392071332,1761136203549,-368.7435861,0.00046027,120]
[392071333,1761136203592,-500.0,0.00046027,120]
[392071334,1761136203634,-830.71,0.00046027,120]
[392071335,1761136203678,-787.56,0.00046027,120]
[392071336,1761136203723,-760.46,0.00046027,120]
[392071337,1761136203766,-964.7,0.00046027,120]
[392071338,1761136203810,-2870.69,0.00046027,120]
[392071339,1761136203849,-1167.09,0.00046027,120]
[392071340,1761136203888,-1476.47,0.00046027,120]
[392071341,1761136203928,-500.0,0.00046027,120]
[392071342,1761136203967,-1391.79,0.00046027,120]
[392071343,1761136204010,-500.0,0.00046027,120]
[392071344,1761136204053,-560.77,0.00046027,120]
[392071345,1761136204095,-836.47,0.00046027,120]
[392071346,1761136204137,-996.26,0.00046027,120]
[392071347,1761136204181,-1536.18,0.00046027,120]
[392071348,1761136204225,-500.0,0.00046027,120]
[392071349,1761136204269,-2863.84,0.00046027,30]
[392071350,1761136204315,-1637.97,0.00046027,120]
[392071351,1761136204359,-1166.77,0.00046027,120]
[392071352,1761136204404,-744.86,0.00046027,120]
[392071353,1761136204447,-500.0,0.00046027,120]
[392071354,1761136204489,-500.0,0.00046027,120]
[392071355,1761136204532,-1207.01,0.00046027,120]
[392071356,1761136204576,-500.0,0.00046027,120]
[392071357,1761136204620,-500.0,0.00046027,120]
[392071358,1761136204664,-933.44,0.00046027,120]
[392071359,1761136204706,-500.0,0.00046027,120]
[392071360,1761136204747,-500.0,0.00046027,120]
[392071361,1761136204787,-506.79,0.00046027,120]
[392071362,1761136204827,-500.0,0.00046027,120]
[392071363,1761136204870,-500.0,0.00046027,120]
[392071364,1761136204913,-500.0,0.00046027,120]
[392071365,1761136204956,-500.0,0.00046027,120]
[392071366,1761136204997,-500.0,0.00046027,120]
[392071367,1761136205036,-1178.29,0.00046027,120]
[392071368,1761136205077,-878.7,0.00046027,120]
[392071369,1761136205118,-388.46120264,0.00046027,120]
[392071370,1761136205160,-4752.5,0.00046027,120]
[392071371,1761136205200,-500.0,0.00046027,120]
[392071372,1761136205240,-170.56356,0.0004608,31]
[392071373,1761136205279,-500.0,0.00046081,120]
[392071374,1761136205355,-500.0,0.00046081,120]
[392071375,1761136205397,-500.0,0.00046081,120]
[392071376,1761136205444,-2123.37,0.00046081,120]
[392071377,1761136205487,-963.07,0.00046081,120]
[392071378,1761136205533,-1853.52,0.00046081,120]
[392071379,1761136205578,-189.68124586,0.00046081,120]
[392071380,1761136205625,-1338.38,0.00046081,120]
[392071381,1761136205672,-582.58,0.00046081,120]
[392071382,1761136205717,-500.0,0.00046081,120]
[392071383,1761136205760,-5164.0,0.00046081,120]
[392071384,1761136205801,-500.0,0.00046081,120]
[392071385,1761136205843,-327.81689132,0.00046081,120]
[392071386,1761136205883,-856.57,0.00046081,120]
[392071387,1761136205925,-938.33,0.00046081,120]
[392071388,1761136205969,-713.85,0.00046081,120]
[392071389,1761136206011,-805.35,0.00046081,120]
[392071390,1761136206052,-1217.66,0.00046081,120]
[392071391,1761136206092,-800.56,0.00046081,120]
[392071392,1761136206130,-1608538.22209141,0.0004612,120]
[392071393,1761136223865,-166.0,0.00031,120]
[392071394,1761136223915,-166.0,0.000376,120]
[392071395,1761136223959,-1999.999999,0.00042,120]
[392071396,1761136224004,-200.0,0.000425,120]
[392071397,1761136224050,-2266.17339792,0.0004279,120]
[392071398,1761136224095,-999.99999999,0.000428,30]
[392071399,1761136224141,-158.24211591,0.00042999,120]
[392071400,1761136224190,-500.0,0.00043835,120]
[392071401,1761136224238,-500.0,0.00043835,120]
[392071402,1761136224284,-500.0,0.00043835,120]
[392071403,1761136224330,-610.02401286,0.00043835,120]
[392071404,1761136224385,-500.0,0.00043835,120]
[392071405,1761136224431,-500.0,0.00043835,120]
[392071406,1761136224479,-668.78,0.00043835,120]
[392071407,1761136224525,-500.0,0.00043835,120]
[392071408,1761136224573,-500.0,0.00043835,120]